Cogmind - Beta 14 @@@ ROGUE MODE // 2025.01.18 @ 14:50:40 Player: WazdakkaGutsmek Result: Self-destructed Performance ------------- Evolutions (2) 1000 Regions Visited (3) 600 Robots Destroyed (17) 85 Value Destroyed (411) 411 Prototype IDs (0) 0 Alien Tech Used (0) 0 Bonus (0) 0 TOTAL SCORE: 2096 Bonus ------- None Cogmind --------- Core Integrity 480/550 Matter 235/300 Energy 125/125 System Corruption 0% Temperature Hot (262) Movement Treading (400) Ox3 Location -8/Materials Parts ------- > --- POWER (1) -------- Light Ion Engine > --- PROPULSION (4) --- Light Treads Compact Wheel > --- UTILITY (4) ------ High-capacity Storage Unit Structural Scanner Layered Light Armor Plating Layered Light Armor Plating > --- WEAPON (2) ------- Subdweller Beam Cannon Battle Cannon > --- INVENTORY (20) --- Aluminum Leg Aluminum Leg Layered Light Armor Plating Layered Light Armor Plating Small Laser Assault Rifle Peak State ------------ > --- POWER ------------ Light Ion Engine > --- PROPULSION ------- Light Treads Compact Wheel Compact Wheel > --- UTILITY ---------- High-capacity Storage Unit Structural Scanner Layered Light Armor Plating Layered Light Armor Plating > --- WEAPON ----------- Subdweller Beam Cannon Battle Cannon > --- INVENTORY -------- Aluminum Leg Aluminum Leg Layered Light Armor Plating Layered Light Armor Plating Small Laser Assault Rifle [Rating: 19] Favorites ----------- Power Light Ion Engine Engine Light Ion Engine Propulsion Aluminum Leg Treads Light Treads Leg Aluminum Leg Wheel Compact Wheel Utility Small Storage Unit Device Structural Scanner Storage Small Storage Unit Protection Layered Light Armor Plating Weapon Assault Rifle Energy Gun Small Laser Energy Cannon Subdweller Beam Cannon Ballistic Gun Assault Rifle Ballistic Cannon Battle Cannon Build | -11 -10 -10 -8 ------- Run | Yrd Mat Sub Mat Slots Evolved 4 | . . . 4 Power . | . . . . Propulsion 2 | . . . 2 Utility 2 | . . . 2 Weapon . | . . . . Parts Attached 14 | . 2 4 8 Power 1 | . . . 1 Engine 1 | . . . 1 Core . | . . . . Reactor . | . . . . Propulsion 5 | . . 2 3 Treads 3 | . . 2 1 Leg . | . . . . Wheel 2 | . . . 2 Hover . | . . . . Flight . | . . . . Utility 4 | . 1 . 3 Device 1 | . 1 . . Storage 1 | . . . 1 Processor . | . . . . Hackware . | . . . . Protection 2 | . . . 2 Artifact . | . . . . Weapon 4 | . 1 2 1 Energy Gun . | . . . . Energy Cannon 1 | . . . 1 Ballistic Gun 2 | . 1 1 . Ballistic Cannon 1 | . . 1 . Launcher . | . . . . Special Weapon . | . . . . Impact Weapon . | . . . . Slashing Weapon . | . . . . Piercing Weapon . | . . . . Special Melee Weapon . | . . . . Unidentified Prototypes . | . . . . Parts Lost 5 | . . 2 3 Power 1 | . . 1 . Propulsion 3 | . . 1 2 Utility . | . . . . Weapon 1 | . . . 1 Highest Loss Streak 2 | . . 1 2 To Critical Strikes . | . . . . Average Slot Usage (%) 83 | . 87 83 65 Engine 9 | . 14 3 4 Treads 7 | . . 22 6 Leg 16 | . 28 . . Wheel 1 | . . . 10 Device 6 | . 1 14 9 Storage 13 | . 14 14 9 Protection 1 | . . . 8 Energy Gun 1 | . 3 . . Ballistic Gun 21 | . 24 23 2 Ballistic Cannon 2 | . . 4 9 Peak Build Rating 19 | . 7 7 19 Average Rating 7 | . 6 6 12 On Entrance 6 | 6 6 7 7 Naked Turns . | . . . . Heaviest Build 63 | 11 13 13 63 Greatest Support 40 | 20 20 40 32 Greatest Overweight (x) 3 | . . . 3 Average Overweight (x) . | . . . 1 Largest Inventory Capacity 20 | . 8 8 20 Average Capacity 9 | . 8 8 19 Most Carried 8 | . 6 8 8 Average Carried 6 | . 6 6 6 Final Capacity 20 | 8 8 8 20 Final Carried 8 | 6 6 8 6 Class Distribution -------------------- 100% | Mutant Dominant Class ---------------- Mutant | -10/Materials Mutant | -10/Subcaves Mutant | -8/Materials Resources | -11 -10 -10 -8 ----------- Run | Yrd Mat Sub Mat Matter Collected 576 | 177 61 205 133 Remotely . | . . . . Salvage Created 464 | . 97 149 218 Parts 27 | . 6 9 12 Haulers Intercepted . | . . . . Recyclers Shooed . | . . . . Parts Field Recycled . | . . . . Retrieved Matter . | . . . . Parts Self-Destructed . | . . . . Prevented . | . . . . Kills | -11 -10 -10 -8 ------- Run | Yrd Mat Sub Mat Combat Hostiles Destroyed 15 | . 4 4 7 Guns 9 | . 4 4 1 Cannons 6 | . . . 6 Classes Destroyed 5 | . 2 1 2 Builder 2 | . . . 2 Swarmer 7 | . 3 . 4 Grunt 2 | . 1 . 1 Sentry 2 | . . . 2 Subdweller 4 | . . 4 . Best Kill Streak 6 | . 3 1 6 Combat Bots Only 3 | . 3 1 2 Max Kills in Single Turn 2 | . 1 1 2 Gunslinging . | . . . . Exploded . | . . . . Melee . | . . . . Uniques/NPCs Destroyed . | . . . . Combat | -11 -10 -10 -8 -------- Run | Yrd Mat Sub Mat Hostile Shots Fired 117 | . 12 35 70 Missed 30 | . 3 5 22 Damage Taken 1196 | . 108 614 474 Core 252 | . 36 146 70 Absorbed by Shields . | . . . . Core Remaining (%) 63 | 100 . 27 . Volleys Fired 57 | . 8 26 23 Largest 2 | . 2 2 2 Hottest 119 | . 40 69 119 Shots Fired 111 | . 16 52 43 Gun 74 | . 16 49 9 Cannon 37 | . . 3 34 Launcher . | . . . . Special . | . . . . Kinetic 100 | . 16 52 32 Thermal 11 | . . . 11 Explosive . | . . . . Electromagnetic . | . . . . Robot Hit Streak 33 | . 2 33 9 Robot Miss Streak 9 | . 2 1 9 Penetration Max . | . . . . Secondary Targets 2 | . . 2 . Max Gunslinging Chain 1 | . . 1 . Shots Hit Robots 71 | . 9 45 17 Core Hits 25 | . 5 10 10 Critical Kills . | . . . . Critical Parts Destroyed . | . . . . Critical Strikes 1 | . . 1 . Destroy 1 | . . 1 . Melee Attacks . | . . . . Impact . | . . . . Slashing . | . . . . Piercing . | . . . . Sneak Attacks . | . . . . Combat Hostiles . | . . . . Follow-up Attacks . | . . . . Damage Inflicted 1272 | . 105 605 562 Guns 773 | . 105 605 63 Cannons 499 | . . . 499 Explosions . | . . . . Melee . | . . . . Ramming . | . . . . Kinetic 987 | . 105 605 277 Thermal 285 | . . . 285 Explosive . | . . . . Electromagnetic . | . . . . Impact . | . . . . Slashing . | . . . . Piercing . | . . . . Highest Corruption . | . . . . Average Corruption . | . . . . Corruption Purged . | . . . . Corruption Blocked . | . . . . Overload Shots . | . . . . Overflow Damage . | . . . . Projectiles . | . . . . Explosions . | . . . . Melee . | . . . . Knockbacks 2 | . . . 2 Impact . | . . . . Kinetic 2 | . . . 2 Secondary . | . . . . Self-Inflicted Damage . | . . . . Shots . | . . . . Rammed . | . . . . Targets Rammed . | . . . . Kicked . | . . . . Crushed . | . . . . Highest Temperature 468 | . . . 468 Average Temperature 184 | . . . 184 Received Heat Transfer 168 | . 30 12 126 Effects 3 | . . . 3 Interference 2 | . . . 2 Damage (major) 1 | . . . 1 Siege Activations . | . . . . Robots Corrupted . | . . . . Combat Hostiles . | . . . . Parts Fried . | . . . . Impact Corruptions . | . . . . Robots Melted . | . . . . Combat Hostiles . | . . . . Parts Melted . | . . . . Heat Transferred 370 | . . . 370 Parts Sabotaged . | . . . . Parts Stolen . | . . . . Parts Stripped . | . . . . Power Chain Reactions . | . . . . Alert | -11 -10 -10 -8 ------- Run | Yrd Mat Sub Mat Peak Influence 198 | . 70 . 198 Initial . | . . . . Average 26 | . 11 . 93 Maximum Alert Level . | . . . . Low Security (%) 100 | . 100 . 100 Level 1 . | . . . . Level 2 . | . . . . Level 3 . | . . . . Level 4 . | . . . . Level 5 . | . . . . High Security . | . . . . Max Security . | . . . . Squads Dispatched 3 | . 1 . 2 Investigation 2 | . . . 2 Extermination . | . . . . Reinforcement 1 | . 1 . . Assault . | . . . . Garrison . | . . . . Intercept . | . . . . Searches Triggered . | . . . . Construction Impeded . | . . . . Haulers Reinforced . | . . . . Active Scanning Responses . | . . . . Cargo Convoy Interrupts . | . . . . Stealth | -11 -10 -10 -8 --------- Run | Yrd Mat Sub Mat Distress Signals 2 | . 1 . 1 Communications Jammed . | . . . . Distress Signals . | . . . . Times Spotted 25 | . 10 4 11 Peak Tracking Total 4 | . 4 2 4 Tactical Retreats . | . . . . Traps | -11 -10 -10 -8 ------- Run | Yrd Mat Sub Mat Traps Triggered 2 | . 1 . 1 Indirectly . | . . . . Trap Hack Attempts . | . . . . Triggered . | . . . . Disarmed . | . . . . Reprogrammed . | . . . . Reused . | . . . . Traps Extracted . | . . . . Installed . | . . . . Triggered . | . . . . Machines | -11 -10 -10 -8 ---------- Run | Yrd Mat Sub Mat Machines Disabled . | . . . . Max in Single Turn . | . . . . Machines Repaired . | . . . . Machines Dismantled . | . . . . Machines Sabotaged . | . . . . Overloaded Fab Kills . | . . . . Hacking | -11 -10 -10 -8 --------- Run | Yrd Mat Sub Mat Machines Accessed 2 | . . . 2 Terminals 2 | . . . 2 Fabricators . | . . . . Repair Stations . | . . . . Recycling Units . | . . . . Scanalyzers . | . . . . Garrison Access . | . . . . Total Hacks 4 | . . . 4 Successful . | . . . . Failed 4 | . . . 4 Catastrophic 1 | . . . 1 Database Lockouts . | . . . . Manual . | . . . . Terminals 4 | . . . 4 Fabricators . | . . . . Repair Stations . | . . . . Recycling Units . | . . . . Scanalyzers . | . . . . Garrison Access . | . . . . Terminal Hacks . | . . . . Fabricator Hacks . | . . . . Repair Station Hacks . | . . . . Recycling Unit Hacks . | . . . . Scanalyzer . | . . . . Garrison Access Hacks . | . . . . Unauthorized Hacks . | . . . . Terminals . | . . . . Fabricators . | . . . . Repair Stations . | . . . . Recycling Units . | . . . . Scanalyzers . | . . . . Garrison Access . | . . . . Data Cores Recovered . | . . . . Used . | . . . . Hacking Detections 2 | . . . 2 Full Trace Events 1 | . . . 1 Feedback Events . | . . . . Feedback Blocked . | . . . . Robot Schematics Acquired . | . . . . Robots Built . | . . . . Authchips . | . . . . Time . | . . . . Total Robot Build Rating . | . . . . Part Schematics Acquired . | . . . . Parts Built . | . . . . Authchips . | . . . . Time . | . . . . Total Part Build Rating . | . . . . Parts Repaired . | . . . . Time . | . . . . Parts Recycled . | . . . . Recycled Matter . | . . . . Retrieved Matter . | . . . . Retrieved Components . | . . . . Parts Scanalyzed . | . . . . Part Schematics Acquired . | . . . . Parts Damaged . | . . . . Bothacking | -11 -10 -10 -8 ------------ Run | Yrd Mat Sub Mat Used RIF Installer . | . . . . Robots Hacked . | . . . . Non-combat . | . . . . Combat . | . . . . Robot Hacks Applied . | . . . . Relay Couplers Released . | . . . . Fabnet Peak Effective % . | . . . . Robots Rewired . | . . . . Allies Hacked . | . . . . Hacks Repelled . | . . . . Allies | -11 -10 -10 -8 -------- Run | Yrd Mat Sub Mat Total Allies . | . . . . Largest Group . | . . . . Highest-Rated Group . | . . . . Highest-Rated Ally . | . . . . Total Orders . | . . . . Ally Attacks . | . . . . Total Damage . | . . . . Kills . | . . . . Allies Corrupted . | . . . . Allies Melted . | . . . . Intel | -11 -10 -10 -8 ------- Run | Yrd Mat Sub Mat Robot Analysis Total . | . . . . Derelict Logs Recovered 1 | . . 1 . Drone Launches . | . . . . Drone Recoveries . | . . . . Exploration | -11 -10 -10 -8 ------------- Run | Yrd Mat Sub Mat Turns Passed 1924 | . 1129 540 255 Spaces Moved 655 | 1 268 271 115 Core . | . . . . Treads 297 | . . 271 26 Legs 269 | 1 268 . . Wheels 89 | . . . 89 Hover . | . . . . Flight . | . . . . Fastest Speed 115 | 120 120 160 115 Average Speed 141 | 120 120 160 149 Slowest Speed 400 | 120 120 160 400 Overloaded Moves . | . . . . Propulsion Burnouts . | . . . . Robots Hopped . | . . . . Cave-ins Triggered . | . . . . Exploration Rate (%) 22 | 1 53 21 16 Regions Visited 3 Branch Regions 1 Pre-discovered Areas . | . . . . Known Exits Taken . | . . . . Unknown Exits Taken 3 | 1 1 1 . Scrap Searched . | . . . . Spaces Dug . | . . . . Terrain Destroyed 9 | . . . 9 Melee . | . . . . Projectile 9 | . . . 9 AOE . | . . . . Terrain Rammed . | . . . . Walls Destroyed . | . . . . Machines Disabled . | . . . . Actions | -11 -10 -10 -8 --------- Run | Yrd Mat Sub Mat Total 1536 | . 1058 324 154 Wait 807 | . 781 23 3 Move 652 | . 267 270 115 Hop . | . . . . Pick Up 3 | . . 1 2 Fast Attach 6 | . 1 . 5 Attach 3 | . . . 3 Detach 1 | . . . 1 Swap 5 | . 1 4 . Drop 2 | . . . 2 Fire 57 | . 8 26 23 Melee . | . . . . Ram . | . . . . Kick . | . . . . Crush . | . . . . Escape Stasis . | . . . . Rewire . | . . . . Trap . | . . . . Miscellaneous . | . . . . Route ------- -11/Scrapyard -10/Materials (discovered 2 exits: [*Mat] / [*Sub]) -10/Subcaves (discovered 2 exits: *Mat / Rec) -8/Materials History --------- Turn | Location | Event 1 | -11/Scrapyard | Discovered new exit (range 0) 1 | -11/Scrapyard | Entered Materials 310 | -10/Materials | Build established: Mutant 883 | -10/Materials | Discovered new exit (range 8) 930 | -10/Materials | Discovered new exit (range 16) 1130 | -10/Materials | Entered Subcaves 1397 | -10/Subcaves | A swath of the cavern ceiling suddenly collapsed 1429 | -10/Subcaves | Shifting Twisted Machinery released Battle Cannon 1430 | -10/Subcaves | Shifting Twisted Machinery released Sub. Beam Cannon 1454 | -10/Subcaves | Core integrity fell below 50% 1514 | -10/Subcaves | Identified exit to Recycling 1656 | -10/Subcaves | Discovered new exit (range 10) 1670 | -10/Subcaves | Entered Materials 1670 | -8/Materials | Evolved 4 slots: Propulsion x2, Utility x2 1925 | -8/Materials | Self-destructed Last Messages --------------- investigation squad. 01906_ Overheating: Lyr. Light Armor Plating damaged (-69). 01908_ Slug penetrates Wall. 01909_ U-05 Engineer builds a Door. 01911_ Slug penetrates Wall. 01911_ Com. Wheel destroyed. 01912_ Overheating: System interference. 01912_ Structural Scanner temporarily disabled. 01912_ Sub. Beam Cannon temporarily disabled. 01913_ U-05 Engineer lays Concrete. 01914_ Connecting with Terminal... 01914_ ALERT: Suspicious activity at Terminal M008. Dispatching Investigation squad. 01914_ Slug penetrates Wall. 01917_ U-05 Engineer builds a Wall. 01920_ Slug penetrates Wall. 01921_ U-05 Engineer works on Matter Filter. 01923_ Slug penetrates Wall. 01924_ Critical hit (Burn: +37). Map ----- +----------------------------------------------------+ | ##########""" ##############???????????????????? | | ###!!!! #""" ### ##???????????????????? | | ###!!!! # ### ### ???????????????? | | ### # ### ######???????????????? | | ###[ ####+##### ### ???????????????? | | +%% + ### ##???????????????? | | ################ ## ### ##???????????????? | | ################ ## ### ### ?????????????? | | # ??????????#### ## ### ### ?????????????? | | ??????????#### ######+##### # ?????????????? | | ?????? # ?????????????? | | ???? ! ##?????????????? | | # ! # ?????????????? | | ## ##################+##### # ?????????????? | | ## ########### ## ## ?????????????? | | ??? # ??????????????????? ## ## ?????????????? | | ???? + ??????????????????? ## ##??????????????? | | ???? # ??????????????????? ## ##??????????????? | | ???? ##??????????? ## ##??????????????? | | ??????????????????############ ## ?????????????? | | ??????????????????## u## r## ???????? | | ??????????????????##" % # g ###/####???????? | | ??????????????????##" [%# "" ???????? | | ??????????????????##" g T ???? | | ??????????????????##T # ???? | | ??????????????????##" @ g; ############???? | | ??????????????????##" ## ############ ???? | | ??????????????????##" ## ###?????????????? | | ??????????????????## ## ##??????????????? | | ??????????????????############ ##??????????????? | | ??????????????????############ ##??????????????? | | ?????????????????????????????? ##??????????????? | | ?????????????????????????????? ##??????????????? | | ?????????????????????????????? ##??????????????? | | ??????????????????????????????? ##??????????????? | | ??????????????????????????????? ##??????????????? | | ??????????????????????????????? ##??????????????? | | ??????????????????????????????? ##??????????????? | | ?????????????????????????????????????????????????? | | ?????????????????????????????????????????????????? | | ?????????????????????????????????????????????????? | | ?????????????????????????????????????????????????? | | ?????????????????????????????????????????????????? | | ?????????????????????????????????????????????????? | | ?????????????????????????????????????????????????? | | ?????????????????????????????????????????????????? | | ?????????????????????????????????????????????????? | | ?????????????????????????????????????????????????? | | ?????????????????????????????????????????????????? | | ?????????????????????????????????????????????????? | +----------------------------------------------------+ Best States ------------- Heat Dissipation 31 Energy Generation 10 Energy Capacity 125 Matter Stores 300 Matter Capacity 300 Sight Range 16 Terrain Scan Density 10 Armor Coverage 300 Evasion (%) 55 Recoil Reduction 2 Item Schematics ----------------- None Robot Schematics ------------------ None Fabricated ------------ Nothing Alien Tech Used ----------------- None Achievements -------------- None Challenges ------------ None Game ------ Seed DisruptionDefenseWheel Manual? 0 Play Time 00:10:09 Cumulative 200.4 hours Start 2025.01.17 @ 20:01:34 End 2025.01.18 @ 14:50:40 Sessions 4 Manual Loads 0 Difficulty Rogue Special Mode None Game No. 179 Rogue 160 Adventurer 16 Explorer 3 Win Type - Total 17 Types 8/0/8/1/0/0/0/0/0 Lore% 52 Gallery% 75 Achievement% 70 Wizard Run 0 Options --------- Layout 2 ASCII 0 Keyboard 0 Movement Numpad Keybinds 1 Fullscreen 2 Font 24/Terminus Map View 50x44 Zoom Use 0% Tactical HUD 1 Map Filters NONE Filters NONE Steam 1 RUN: d5d23f22-68c1-402b-9573-fb072bbc1cac